{"text_format":"3","workbook":"xlsx","n_sheets":1,"sheets":["Orçamento Familiar Mensal"],"not_rendered":{"defined_names":1},"read":"whole","date_system":"1900"}

{"sheet":"Orçamento Familiar Mensal","index":0,"n_rows":68,"n_cols":9,"rows_kept":68,"merged":[[0,0,0,6],[2,0,2,1],[2,5,2,6],[8,5,8,6],[18,0,18,3],[27,5,27,8],[29,0,29,3],[36,0,36,3],[37,5,37,8],[42,0,42,3],[44,5,44,8],[54,0,54,3],[54,5,54,8],[61,0,61,3],[62,5,62,8]]}
["Orçamento Familiar Mensal"]
[]
["Custo Previsto Total",null,"Custo Real Total","Diferença Total",null,"Rendimento Mensal Previsto"]
[null,{"$f":"Housing[[#Totals],[Custo Previsto]]+Transportation[[#Totals],[Custo Previsto]]+Insurance[[#Totals],[Custo Previsto]]+Food[[#Totals],[Custo Previsto]]+Children[[#Totals],[Custo Previsto]]+Legal[[#Totals],[Custo Previsto]]+Savings[[#Totals],[Custo Previsto]]+Loans[[#Totals],[Custo Previsto]]+Entertainment[[#Totals],[Custo Previsto]]+Taxes[[#Totals],[Custo Previsto]]+PersonalCare[[#Totals],[Custo Previsto]]+Pets[[#Totals],[Custo Previsto]]+Gifts[[#Totals],[Custo Previsto]]","v":{"v":1203,"d":"1,203.00 €"}},{"$f":"Housing[[#Totals],[Custo Real]]+Transportation[[#Totals],[Custo Real]]+Insurance[[#Totals],[Custo Real]]+Food[[#Totals],[Custo Real]]+Children[[#Totals],[Custo Real]]+Legal[[#Totals],[Custo Real]]+Savings[[#Totals],[Custo Real]]+Loans[[#Totals],[Custo Real]]+Entertainment[[#Totals],[Custo Real]]+Taxes[[#Totals],[Custo Real]]+PersonalCare[[#Totals],[Custo Real]]+Pets[[#Totals],[Custo Real]]+Gifts[[#Totals],[Custo Real]]","v":{"v":1317,"d":"1,317.00 €"}},{"$f":"Housing[[#Totals],[Diferença]]+Transportation[[#Totals],[Diferença]]+Insurance[[#Totals],[Diferença]]+Food[[#Totals],[Diferença]]+Children[[#Totals],[Diferença]]+Legal[[#Totals],[Diferença]]+Savings[[#Totals],[Diferença]]+Loans[[#Totals],[Diferença]]+Entertainment[[#Totals],[Diferença]]+Taxes[[#Totals],[Diferença]]+PersonalCare[[#Totals],[Diferença]]+Pets[[#Totals],[Diferença]]+Gifts[[#Totals],[Diferença]]","v":{"v":-114,"d":"-114.00 €"}},null,"Rendimento 1",{"v":4000,"d":"4,000.00 €"}]
[{"$nulls":5},"Rendimento 2",{"v":1200,"d":"1,200.00 €"}]
["Habitação","Custo Previsto","Custo Real","Diferença",null,"Rendimento extra",{"v":300,"d":"300.00 €"}]
["Hipoteca ou renda",{"v":1000,"d":"1,000.00 €"},{"v":1000,"d":"1,000.00 €"},{"$f":"Housing[Custo Previsto]-Housing[Custo Real]","v":{"v":0,"d":"0.00 €"}},null,"Total do rendimento mensal",{"$f":"SUM(G4:G6)","v":{"v":5500,"d":"5,500.00 €"}}]
["Segunda hipoteca ou renda",{"v":0,"d":"0.00 €"},{"v":0,"d":"0.00 €"},{"$f":"Housing[Custo Previsto]-Housing[Custo Real]","v":{"v":0,"d":"0.00 €"}}]
["Telefone",{"v":62,"d":"62.00 €"},{"v":100,"d":"100.00 €"},{"$f":"Housing[Custo Previsto]-Housing[Custo Real]","v":{"v":-38,"d":"-38.00 €"}},null,"Rendimento Mensal Real"]
["Electricidade",{"v":44,"d":"44.00 €"},{"v":125,"d":"125.00 €"},{"$f":"Housing[Custo Previsto]-Housing[Custo Real]","v":{"v":-81,"d":"-81.00 €"}},null,"Rendimento 1",{"v":4000,"d":"4,000.00 €"}]
["Gás",{"v":22,"d":"22.00 €"},{"v":35,"d":"35.00 €"},{"$f":"Housing[Custo Previsto]-Housing[Custo Real]","v":{"v":-13,"d":"-13.00 €"}},null,"Rendimento 2",{"v":1200,"d":"1,200.00 €"}]
["Água e esgotos",{"v":8,"d":"8.00 €"},{"v":8,"d":"8.00 €"},{"$f":"Housing[Custo Previsto]-Housing[Custo Real]","v":{"v":0,"d":"0.00 €"}},null,"Rendimento extra",{"v":300,"d":"300.00 €"}]
["Televisão por cabo",{"v":34,"d":"34.00 €"},{"v":39,"d":"39.00 €"},{"$f":"Housing[Custo Previsto]-Housing[Custo Real]","v":{"v":-5,"d":"-5.00 €"}},null,"Total do rendimento mensal",{"$f":"SUM(G10:G12)","v":{"v":5500,"d":"5,500.00 €"}}]
["Remoção de esgotos",{"v":10,"d":"10.00 €"},{"v":10,"d":"10.00 €"},{"$f":"Housing[Custo Previsto]-Housing[Custo Real]","v":{"v":0,"d":"0.00 €"}}]
["Manutenção ou reparações",{"v":23,"d":"23.00 €"},{"v":0,"d":"0.00 €"},{"$f":"Housing[Custo Previsto]-Housing[Custo Real]","v":{"v":23,"d":"23.00 €"}},null,"Balanço previsto\n",{"$f":"SUM(G7-B4)","v":{"v":4297,"d":"4,297.00 €"}}]
["Consumíveis",{"v":0,"d":"0.00 €"},{"v":0,"d":"0.00 €"},{"$f":"Housing[Custo Previsto]-Housing[Custo Real]","v":{"v":0,"d":"0.00 €"}},null,"Balanço real",{"$f":"SUM(G13-C4)","v":{"v":4183,"d":"4,183.00 €"}}]
["Outros",{"v":0,"d":"0.00 €"},{"v":0,"d":"0.00 €"},{"$f":"Housing[Custo Previsto]-Housing[Custo Real]","v":{"v":0,"d":"0.00 €"}},null,"Diferença",{"$f":"SUM(G16-G15)","v":{"v":-114,"d":"-114.00 €"}}]
["Total",{"$f":"SUBTOTAL(109,Housing[Custo Previsto])","v":{"v":1203,"d":"1,203.00 €"}},{"$f":"SUBTOTAL(109,Housing[Custo Real])","v":{"v":1317,"d":"1,317.00 €"}},{"$f":"SUBTOTAL(109,Housing[Diferença])","v":{"v":-114,"d":"-114.00 €"}}]
[]
["Transportes","Custo Previsto","Custo Real","Diferença",null,"Empréstimos","Custo Previsto","Custo Real","Diferença"]
["Pagamento do veículo 1",null,null,{"$f":"Transportation[Custo Previsto]-Transportation[Custo Real]","v":{"v":0,"d":"0.00 €"}},null,"Pessoal",null,null,{"$f":"Loans[Custo Previsto]-Loans[Custo Real]","v":{"v":0,"d":"0.00 €"}}]
["Pagamento do veículo 2",null,null,{"$f":"Transportation[Custo Previsto]-Transportation[Custo Real]","v":{"v":0,"d":"0.00 €"}},null,"Estudante",null,null,{"$f":"Loans[Custo Previsto]-Loans[Custo Real]","v":{"v":0,"d":"0.00 €"}}]
["Preço autocarro/taxi",null,null,{"$f":"Transportation[Custo Previsto]-Transportation[Custo Real]","v":{"v":0,"d":"0.00 €"}},null,"Cartão de crédito",null,null,{"$f":"Loans[Custo Previsto]-Loans[Custo Real]","v":{"v":0,"d":"0.00 €"}}]
["Seguro",null,null,{"$f":"Transportation[Custo Previsto]-Transportation[Custo Real]","v":{"v":0,"d":"0.00 €"}},null,"Cartão de crédito",null,null,{"$f":"Loans[Custo Previsto]-Loans[Custo Real]","v":{"v":0,"d":"0.00 €"}}]
["Licenciamento",null,null,{"$f":"Transportation[Custo Previsto]-Transportation[Custo Real]","v":{"v":0,"d":"0.00 €"}},null,"Cartão de crédito",null,null,{"$f":"Loans[Custo Previsto]-Loans[Custo Real]","v":{"v":0,"d":"0.00 €"}}]
["Combustível",null,null,{"$f":"Transportation[Custo Previsto]-Transportation[Custo Real]","v":{"v":0,"d":"0.00 €"}},null,"Outros",null,null,{"$f":"Loans[Custo Previsto]-Loans[Custo Real]","v":{"v":0,"d":"0.00 €"}}]
["Manutenção",null,null,{"$f":"Transportation[Custo Previsto]-Transportation[Custo Real]","v":{"v":0,"d":"0.00 €"}},null,"Total",{"$f":"SUBTOTAL(109,Loans[Custo Previsto])","v":{"v":0,"d":"0.00 €"}},{"$f":"SUBTOTAL(109,Loans[Custo Real])","v":{"v":0,"d":"0.00 €"}},{"$f":"SUBTOTAL(109,Loans[Diferença])","v":{"v":0,"d":"0.00 €"}}]
["Outros",null,null,{"$f":"Transportation[Custo Previsto]-Transportation[Custo Real]","v":{"v":0,"d":"0.00 €"}}]
["Total",{"$f":"SUBTOTAL(109,Transportation[Custo Previsto])","v":{"v":0,"d":"0.00 €"}},{"$f":"SUBTOTAL(109,Transportation[Custo Real])","v":{"v":0,"d":"0.00 €"}},{"$f":"SUBTOTAL(109,Transportation[Diferença])","v":{"v":0,"d":"0.00 €"}},null,"Entretenimento","Custo Previsto","Custo Real","Diferença"]
[{"$nulls":5},"Vídeo/DVD",null,null,{"$f":"Entertainment[Custo Previsto]-Entertainment[Custo Real]","v":{"v":0,"d":"0.00 €"}}]
["Seguro","Custo Previsto","Custo Real","Diferença",null,"CDs",null,null,{"$f":"Entertainment[Custo Previsto]-Entertainment[Custo Real]","v":{"v":0,"d":"0.00 €"}}]
["Casa",null,null,{"$f":"Insurance[Custo Previsto]-Insurance[Custo Real]","v":{"v":0,"d":"0.00 €"}},null,"Filmes",null,null,{"$f":"Entertainment[Custo Previsto]-Entertainment[Custo Real]","v":{"v":0,"d":"0.00 €"}}]
["Saúde",null,null,{"$f":"Insurance[Custo Previsto]-Insurance[Custo Real]","v":{"v":0,"d":"0.00 €"}},null,"Concertos",null,null,{"$f":"Entertainment[Custo Previsto]-Entertainment[Custo Real]","v":{"v":0,"d":"0.00 €"}}]
["Vida",null,null,{"$f":"Insurance[Custo Previsto]-Insurance[Custo Real]","v":{"v":0,"d":"0.00 €"}},null,"Eventos desportivos",null,null,{"$f":"Entertainment[Custo Previsto]-Entertainment[Custo Real]","v":{"v":0,"d":"0.00 €"}}]
["Outros",null,null,{"$f":"Insurance[Custo Previsto]-Insurance[Custo Real]","v":{"v":0,"d":"0.00 €"}},null,"Teatro",null,null,{"$f":"Entertainment[Custo Previsto]-Entertainment[Custo Real]","v":{"v":0,"d":"0.00 €"}}]
["Total",{"$f":"SUBTOTAL(109,Insurance[Custo Previsto])","v":{"v":0,"d":"0.00 €"}},{"$f":"SUBTOTAL(109,Insurance[Custo Real])","v":{"v":0,"d":"0.00 €"}},{"$f":"SUBTOTAL(109,Insurance[Diferença])","v":{"v":0,"d":"0.00 €"}},null,"Outros",null,null,{"$f":"Entertainment[Custo Previsto]-Entertainment[Custo Real]","v":{"v":0,"d":"0.00 €"}}]
[{"$nulls":5},"Total",{"$f":"SUBTOTAL(109,Entertainment[Custo Previsto])","v":{"v":0,"d":"0.00 €"}},{"$f":"SUBTOTAL(109,Entertainment[Custo Real])","v":{"v":0,"d":"0.00 €"}},{"$f":"SUBTOTAL(109,Entertainment[Diferença])","v":{"v":0,"d":"0.00 €"}}]
["Alimentação","Custo Previsto","Custo Real","Diferença"]
["Mercearia",null,null,{"$f":"Food[Custo Previsto]-Food[Custo Real]","v":{"v":0,"d":"0.00 €"}},null,"Impostos","Custo Previsto","Custo Real","Diferença"]
["Jantar fora",null,null,{"$f":"Food[Custo Previsto]-Food[Custo Real]","v":{"v":0,"d":"0.00 €"}},null,"Federal",null,null,{"$f":"Taxes[Custo Previsto]-Taxes[Custo Real]","v":{"v":0,"d":"0.00 €"}}]
["Outros",null,null,{"$f":"Food[Custo Previsto]-Food[Custo Real]","v":{"v":0,"d":"0.00 €"}},null,"Distrital",null,null,{"$f":"Taxes[Custo Previsto]-Taxes[Custo Real]","v":{"v":0,"d":"0.00 €"}}]
["Total",{"$f":"SUBTOTAL(109,Food[Custo Previsto])","v":{"v":0,"d":"0.00 €"}},{"$f":"SUBTOTAL(109,Food[Custo Real])","v":{"v":0,"d":"0.00 €"}},{"$f":"SUBTOTAL(109,Food[Diferença])","v":{"v":0,"d":"0.00 €"}},null,"Local",null,null,{"$f":"Taxes[Custo Previsto]-Taxes[Custo Real]","v":{"v":0,"d":"0.00 €"}}]
[{"$nulls":5},"Outros",null,null,{"$f":"Taxes[Custo Previsto]-Taxes[Custo Real]","v":{"v":0,"d":"0.00 €"}}]
["Crianças","Custo Previsto","Custo Real","Diferença",null,"Total",{"$f":"SUBTOTAL(109,Taxes[Custo Previsto])","v":{"v":0,"d":"0.00 €"}},{"$f":"SUBTOTAL(109,Taxes[Custo Real])","v":{"v":0,"d":"0.00 €"}},{"$f":"SUBTOTAL(109,Taxes[Diferença])","v":{"v":0,"d":"0.00 €"}}]
["Médicos",null,null,{"$f":"Children[Custo Previsto]-Children[Custo Real]","v":{"v":0,"d":"0.00 €"}}]
["Roupa",null,null,{"$f":"Children[Custo Previsto]-Children[Custo Real]","v":{"v":0,"d":"0.00 €"}},null,"Encargos Pessoais","Custo Previsto","Custo Real","Diferença"]
["Taxas escolares",null,null,{"$f":"Children[Custo Previsto]-Children[Custo Real]","v":{"v":0,"d":"0.00 €"}},null,"Médicos",null,null,{"$f":"PersonalCare[Custo Previsto]-PersonalCare[Custo Real]","v":{"v":0,"d":"0.00 €"}}]
["Material escolar",null,null,{"$f":"Children[Custo Previsto]-Children[Custo Real]","v":{"v":0,"d":"0.00 €"}},null,"Cabeleireiro/manicura",null,null,{"$f":"PersonalCare[Custo Previsto]-PersonalCare[Custo Real]","v":{"v":0,"d":"0.00 €"}}]
["Dívidas ou taxas de organizações",null,null,{"$f":"Children[Custo Previsto]-Children[Custo Real]","v":{"v":0,"d":"0.00 €"}},null,"Roupa",null,null,{"$f":"PersonalCare[Custo Previsto]-PersonalCare[Custo Real]","v":{"v":0,"d":"0.00 €"}}]
["Dinheiro para almoço",null,null,{"$f":"Children[Custo Previsto]-Children[Custo Real]","v":{"v":0,"d":"0.00 €"}},null,"Lavandaria",null,null,{"$f":"PersonalCare[Custo Previsto]-PersonalCare[Custo Real]","v":{"v":0,"d":"0.00 €"}}]
["Cuidados infantis",null,null,{"$f":"Children[Custo Previsto]-Children[Custo Real]","v":{"v":0,"d":"0.00 €"}},null,"Ginásio",null,null,{"$f":"PersonalCare[Custo Previsto]-PersonalCare[Custo Real]","v":{"v":0,"d":"0.00 €"}}]
["Brinquedos/jogos",null,null,{"$f":"Children[Custo Previsto]-Children[Custo Real]","v":{"v":0,"d":"0.00 €"}},null,"Dívidas/taxas de organizações",null,null,{"$f":"PersonalCare[Custo Previsto]-PersonalCare[Custo Real]","v":{"v":0,"d":"0.00 €"}}]
["Outros",null,null,{"$f":"Children[Custo Previsto]-Children[Custo Real]","v":{"v":0,"d":"0.00 €"}},null,"Outros",null,null,{"$f":"PersonalCare[Custo Previsto]-PersonalCare[Custo Real]","v":{"v":0,"d":"0.00 €"}}]
["Total",{"$f":"SUBTOTAL(109,Children[Custo Previsto])","v":{"v":0,"d":"0.00 €"}},{"$f":"SUBTOTAL(109,Children[Custo Real])","v":{"v":0,"d":"0.00 €"}},{"$f":"SUBTOTAL(109,Children[Diferença])","v":{"v":0,"d":"0.00 €"}},null,"Total",{"$f":"SUBTOTAL(109,PersonalCare[Custo Previsto])","v":{"v":0,"d":"0.00 €"}},{"$f":"SUBTOTAL(109,PersonalCare[Custo Real])","v":{"v":0,"d":"0.00 €"}},{"$f":"SUBTOTAL(109,PersonalCare[Diferença])","v":{"v":0,"d":"0.00 €"}}]
[]
["Jurídico","Custo Previsto","Custo Real","Diferença",null,"Animais de estimação","Custo Previsto","Custo Real","Diferença"]
["Advogado",null,null,{"$f":"Legal[Custo Previsto]-Legal[Custo Real]","v":{"v":0,"d":"0.00 €"}},null,"Alimentação",null,null,{"$f":"Pets[Custo Previsto]-Pets[Custo Real]","v":{"v":0,"d":"0.00 €"}}]
["Pensão de alimentos",null,null,{"$f":"Legal[Custo Previsto]-Legal[Custo Real]","v":{"v":0,"d":"0.00 €"}},null,"Médicos",null,null,{"$f":"Pets[Custo Previsto]-Pets[Custo Real]","v":{"v":0,"d":"0.00 €"}}]
["Pagamentos",null,null,{"$f":"Legal[Custo Previsto]-Legal[Custo Real]","v":{"v":0,"d":"0.00 €"}},null,"Tratamento",null,null,{"$f":"Pets[Custo Previsto]-Pets[Custo Real]","v":{"v":0,"d":"0.00 €"}}]
["Outros",null,null,{"$f":"Legal[Custo Previsto]-Legal[Custo Real]","v":{"v":0,"d":"0.00 €"}},null,"Brinquedos",null,null,{"$f":"Pets[Custo Previsto]-Pets[Custo Real]","v":{"v":0,"d":"0.00 €"}}]
["Total",{"$f":"SUBTOTAL(109,Legal[Custo Previsto])","v":{"v":0,"d":"0.00 €"}},{"$f":"SUBTOTAL(109,Legal[Custo Real])","v":{"v":0,"d":"0.00 €"}},{"$f":"SUBTOTAL(109,Legal[Diferença])","v":{"v":0,"d":"0.00 €"}},null,"Outros",null,null,{"$f":"Pets[Custo Previsto]-Pets[Custo Real]","v":{"v":0,"d":"0.00 €"}}]
[{"$nulls":5},"Total",{"$f":"SUBTOTAL(109,Pets[Custo Previsto])","v":{"v":0,"d":"0.00 €"}},{"$f":"SUBTOTAL(109,Pets[Custo Real])","v":{"v":0,"d":"0.00 €"}},{"$f":"SUBTOTAL(109,Pets[Diferença])","v":{"v":0,"d":"0.00 €"}}]
["Poupanças/Investimentos","Custo Previsto","Custo Real","Diferença"]
["Conta poupança reforma",null,null,{"$f":"Savings[Custo Previsto]-Savings[Custo Real]","v":{"v":0,"d":"0.00 €"}},null,"Presentes e Doações","Custo Previsto","Custo Real","Diferença"]
["Conta de investimento",null,null,{"$f":"Savings[Custo Previsto]-Savings[Custo Real]","v":{"v":0,"d":"0.00 €"}},null,"Caridade 1",null,null,{"$f":"Gifts[Custo Previsto]-Gifts[Custo Real]","v":{"v":0,"d":"0.00 €"}}]
["Colégio",null,null,{"$f":"Savings[Custo Previsto]-Savings[Custo Real]","v":{"v":0,"d":"0.00 €"}},null,"Caridade 2",null,null,{"$f":"Gifts[Custo Previsto]-Gifts[Custo Real]","v":{"v":0,"d":"0.00 €"}}]
["Outros",null,null,{"$f":"Savings[Custo Previsto]-Savings[Custo Real]","v":{"v":0,"d":"0.00 €"}},null,"Caridade 3",null,null,{"$f":"Gifts[Custo Previsto]-Gifts[Custo Real]","v":{"v":0,"d":"0.00 €"}}]
["Total",{"$f":"SUBTOTAL(109,Savings[Custo Previsto])","v":{"v":0,"d":"0.00 €"}},{"$f":"SUBTOTAL(109,Savings[Custo Real])","v":{"v":0,"d":"0.00 €"}},{"$f":"SUBTOTAL(109,Savings[Diferença])","v":{"v":0,"d":"0.00 €"}},null,"Total",{"$f":"SUBTOTAL(109,Gifts[Custo Previsto])","v":{"v":0,"d":"0.00 €"}},{"$f":"SUBTOTAL(109,Gifts[Custo Real])","v":{"v":0,"d":"0.00 €"}},{"$f":"SUBTOTAL(109,Gifts[Diferença])","v":{"v":0,"d":"0.00 €"}}]